[Event "FIDE World Rapid Chess Championship 2021"]
[White "Najer, Evgeniy"]
[Black "Saric, Ivan"]
[WhiteFideId "4118987"]
[BlackFideId "14508150"]
[WhiteElo "2565"]
[BlackElo "2684"]
[Result "1/2-1/2"]
[Round "08"]
[TimeControl "900+10"]
[Date "2021.12.27"]
[WhiteClock "0:00:14"]
[BlackClock "0:00:13"]

1. e4 {[%clk 0:15:00]}  c5 {[%clk 0:15:00]} 2. Nf3 {[%clk 0:15:00]}  d6 {[%clk 0:15:00]} 3. d4 {[%clk 0:15:00]}  cxd4 {[%clk 0:15:00]} 4. Nxd4 {[%clk 0:15:00]}  Nf6 {[%clk 0:15:00]} 5. Nc3 {[%clk 0:15:00]}  a6 {[%clk 0:15:00]} 6. Be2 {[%clk 0:16:43]}  e5 {[%clk 0:15:05]} 7. Nb3 {[%clk 0:16:43]}  Be7 {[%clk 0:15:05]} 8. Be3 {[%clk 0:16:43]}  Be6 {[%clk 0:15:05]} 9. Nd5 {[%clk 0:16:43]}  Nbd7 {[%clk 0:15:05]} 10. Qd3 {[%clk 0:16:43]}  Bxd5 {[%clk 0:15:05]} 11. exd5 {[%clk 0:16:43]}  Rc8 {[%clk 0:15:05]} 12. O-O-O {[%clk 0:16:43]}  Nb6 {[%clk 0:15:05]} 13. Kb1 {[%clk 0:16:43]}  Nc4 {[%clk 0:15:05]} 14. Bc1 {[%clk 0:16:43]}  h5 {[%clk 0:15:05]} 15. h3 {[%clk 0:16:43]}  h4 {[%clk 0:15:05]} 16. g4 {[%clk 0:16:43]}  Nd7 {[%clk 0:14:17]} 17. Qe4 {[%clk 0:13:06]}  b5 {[%clk 0:14:03]} 18. f4 {[%clk 0:13:06]}  exf4 {[%clk 0:14:00]} 19. Nd4 {[%clk 0:11:15]}  Nce5 {[%clk 0:10:11]} 20. Bxf4 {[%clk 0:11:16]}  O-O {[%clk 0:08:48]} 21. Nc6 {[%clk 0:10:04]}  Qe8 {[%clk 0:08:48]} 22. Bxe5 {[%clk 0:10:08]}  dxe5 {[%clk 0:07:14]} 23. d6 {[%clk 0:10:08]}  Bg5 {[%clk 0:07:14]} 24. Bf3 {[%clk 0:10:08]}  Qe6 {[%clk 0:07:02]} 25. Rhe1 {[%clk 0:07:00]}  Rfe8 {[%clk 0:07:02]} 26. a3 {[%clk 0:07:00]}  g6 {[%clk 0:07:02]} 27. Qb4 {[%clk 0:07:00]}  Kg7 {[%clk 0:05:19]} 28. Nxe5 {[%clk 0:06:14]}  Nxe5 {[%clk 0:05:19]} 29. d7 {[%clk 0:05:42]}  Qxd7 {[%clk 0:04:04]} 30. Rxd7 {[%clk 0:05:42]}  Nxd7 {[%clk 0:04:04]} 31. Rxe8 {[%clk 0:05:42]}  Rxe8 {[%clk 0:04:04]} 32. Qd6 {[%clk 0:05:42]}  Re3 {[%clk 0:02:19]} 33. Bd5 {[%clk 0:04:37]}  Nf6 {[%clk 0:02:14]} 34. Bb3 {[%clk 0:02:05]}  Rxh3 {[%clk 0:02:14]} 35. Qxa6 {[%clk 0:02:05]}  Rxb3 {[%clk 0:00:05]} 36. cxb3 {[%clk 0:01:44]}  h3 {[%clk 0:00:05]} 37. Qd6 {[%clk 0:01:44]}  Nxg4 {[%clk 0:00:05]} 38. Qd4+ {[%clk 0:01:44]}  Nf6 {[%clk 0:00:05]} 39. Qe5 {[%clk 0:01:44]}  Bd2 {[%clk 0:00:05]} 40. Qh2 {[%clk 0:01:44]}  Ne4 {[%clk 0:00:05]} 41. Qxh3 {[%clk 0:01:44]}  f5 {[%clk 0:00:05]} 42. b4 {[%clk 0:01:44]}  Kf6 {[%clk 0:00:21]} 43. Qd3 {[%clk 0:01:30]}  g5 {[%clk 0:00:21]} 44. Qxb5 {[%clk 0:01:30]}  g4 {[%clk 0:00:21]} 45. Qc6+ {[%clk 0:01:30]}  Kg5 {[%clk 0:00:21]} 46. Qd5 {[%clk 0:01:30]}  g3 {[%clk 0:00:21]} 47. b5 {[%clk 0:01:30]}  Kf4 {[%clk 0:00:21]} 48. b6 {[%clk 0:00:13]}  g2 {[%clk 0:00:22]} 49. Qg8 {[%clk 0:00:13]}  Kf3 {[%clk 0:00:22]} 50. b7 {[%clk 0:00:13]}  Bf4 {[%clk 0:00:22]} 51. Ka2 {[%clk 0:00:13]}  Kf2 {[%clk 0:00:22]} 52. b8=Q {[%clk 0:00:13]}  Bxb8 {[%clk 0:00:22]} 53. Qxb8 {[%clk 0:00:13]}  g1=Q {[%clk 0:00:22]} 54. Qf4+ {[%clk 0:00:13]}  Ke2 {[%clk 0:00:22]} 55. Qxf5 {[%clk 0:00:13]}  Qd4 {[%clk 0:00:22]} 56. Qg4+ {[%clk 0:00:13]}  Kd2 {[%clk 0:00:22]} 57. Qf4+ {[%clk 0:00:13]}  Kc2 {[%clk 0:00:22]} 58. Qc7+ {[%clk 0:00:13]}  Kd1 {[%clk 0:00:22]} 59. Qf7 {[%clk 0:00:13]}  Nd2 {[%clk 0:00:13]} 60. Qh5+ {[%clk 0:00:14]}  Kc1 {[%clk 0:00:13]} 61. Qh1+ {[%clk 0:00:14]}  Kc2 {[%clk 0:00:13]} 62. Qh7+ {[%clk 0:00:14]}  Ne4 {[%clk 0:00:13]} 1/2-1/2


[Site "http://www.Chess.com"]

[Event "FIDE World Rapid Chess Championship 2021"]
[White "Shevchenko, Kirill"]
[Black "Paravyan, David"]
[WhiteFideId "14129574"]
[BlackFideId "4194985"]
[WhiteElo "2508"]
[BlackElo "2671"]
[Result "1-0"]
[Round "08"]
[TimeControl "900+10"]
[Date "2021.12.27"]
[WhiteClock "0:00:14"]
[BlackClock "0:00:00"]

1. e4 {[%clk 0:15:00]}  e5 {[%clk 0:15:00]} 2. Nf3 {[%clk 0:15:00]}  Nc6 {[%clk 0:15:00]} 3. Bb5 {[%clk 0:15:00]}  Nf6 {[%clk 0:15:00]} 4. d3 {[%clk 0:14:18]}  Bc5 {[%clk 0:15:14]} 5. Bxc6 {[%clk 0:14:18]}  dxc6 {[%clk 0:15:14]} 6. O-O {[%clk 0:14:18]}  Qe7 {[%clk 0:15:14]} 7. Nbd2 {[%clk 0:14:18]}  Bg4 {[%clk 0:15:14]} 8. c3 {[%clk 0:14:18]}  Rd8 {[%clk 0:15:14]} 9. b4 {[%clk 0:14:18]}  Bb6 {[%clk 0:15:14]} 10. Qc2 {[%clk 0:14:18]}  O-O {[%clk 0:15:14]} 11. h3 {[%clk 0:14:18]}  Bh5 {[%clk 0:15:14]} 12. a4 {[%clk 0:14:18]}  a6 {[%clk 0:15:14]} 13. Ba3 {[%clk 0:12:46]}  Rfe8 {[%clk 0:11:44]} 14. c4 {[%clk 0:08:09]}  c5 {[%clk 0:15:12]} 15. Rfb1 {[%clk 0:03:54]}  Nd7 {[%clk 0:10:16]} 16. a5 {[%clk 0:03:08]}  Ba7 {[%clk 0:10:16]} 17. b5 {[%clk 0:02:56]}  Qd6 {[%clk 0:08:05]} 18. Rb3 {[%clk 0:02:56]}  Nf8 {[%clk 0:08:05]} 19. Bb2 {[%clk 0:02:56]}  f6 {[%clk 0:07:32]} 20. Nh4 {[%clk 0:01:07]}  Rd7 {[%clk 0:04:50]} 21. Nf5 {[%clk 0:01:16]}  Qe6 {[%clk 0:04:50]} 22. Nf1 {[%clk 0:01:16]}  Red8 {[%clk 0:02:50]} 23. N1e3 {[%clk 0:00:33]}  Qf7 {[%clk 0:02:50]} 24. bxa6 {[%clk 0:00:33]}  bxa6 {[%clk 0:02:50]} 25. Nd5 {[%clk 0:00:33]}  c6 {[%clk 0:02:50]} 26. Nb6 {[%clk 0:00:33]}  Rb7 {[%clk 0:01:25]} 27. Bc1 {[%clk 0:00:35]}  Ne6 {[%clk 0:01:25]} 28. Be3 {[%clk 0:00:35]}  Bg6 {[%clk 0:01:25]} 29. Rab1 {[%clk 0:00:35]}  h6 {[%clk 0:01:25]} 30. Nc8 {[%clk 0:00:35]}  Rbd7 {[%clk 0:00:06]} 31. Nb6 {[%clk 0:00:13]}  Rc7 {[%clk 0:00:06]} 32. g3 {[%clk 0:00:13]}  Kh7 {[%clk 0:00:06]} 33. Kg2 {[%clk 0:00:13]}  Bh5 {[%clk 0:00:06]} 34. Na4 {[%clk 0:00:13]}  Rcd7 {[%clk 0:00:06]} 35. Nb6 {[%clk 0:00:13]}  Rc7 {[%clk 0:00:06]} 36. R1b2 {[%clk 0:00:13]}  Qf8 {[%clk 0:00:06]} 37. Na4 {[%clk 0:00:13]}  Qf7 {[%clk 0:00:06]} 38. Qb1 {[%clk 0:00:13]}  Rdd7 {[%clk 0:00:06]} 39. Nb6 {[%clk 0:00:13]}  Rd8 {[%clk 0:00:06]} 40. Na4 {[%clk 0:00:13]}  Rdd7 {[%clk 0:00:06]} 41. Qc1 {[%clk 0:00:15]}  Bg6 {[%clk 0:00:27]} 42. Nh4 {[%clk 0:00:15]}  f5 {[%clk 0:00:27]} 43. Nxg6 {[%clk 0:00:15]}  Qxg6 {[%clk 0:00:27]} 44. exf5 {[%clk 0:00:15]}  Qxf5 {[%clk 0:00:27]} 45. Qd1 {[%clk 0:00:15]}  e4 {[%clk 0:00:27]} 46. Nb6 {[%clk 0:00:15]}  Rxd3 {[%clk 0:00:27]} 47. Rxd3 {[%clk 0:00:15]}  exd3 {[%clk 0:00:27]} 48. Qf3 {[%clk 0:00:15]}  Qg6 {[%clk 0:00:27]} 49. h4 {[%clk 0:00:15]}  h5 {[%clk 0:00:27]} 50. Kh2 {[%clk 0:00:15]}  Bb8 {[%clk 0:00:28]} 51. Na4 {[%clk 0:00:36]}  Rf7 {[%clk 0:00:28]} 52. Qxc6 {[%clk 0:00:36]}  Be5 {[%clk 0:00:28]} 53. Rb6 {[%clk 0:00:36]}  d2 {[%clk 0:00:28]} 54. Qd5 {[%clk 0:00:36]}  Qc2 {[%clk 0:00:28]} 55. Nb2 {[%clk 0:00:36]}  Bxb2 {[%clk 0:00:28]} 56. Qxh5+ {[%clk 0:00:36]}  Kg8 {[%clk 0:00:28]} 57. Rd6 {[%clk 0:00:36]}  Bd4 {[%clk 0:00:00]} 58. Rxe6 {[%clk 0:00:14]}  d1=Q {[%clk 0:00:00]} 1-0


[Site "http://www.Chess.com"]

[Event "FIDE World Rapid Chess Championship 2021"]
[White "Mitrabha, Guha"]
[Black "Predke, Alexandr"]
[WhiteFideId "5057000"]
[BlackFideId "24107581"]
[WhiteElo "2107"]
[BlackElo "2630"]
[Result "1-0"]
[Round "08"]
[TimeControl "900+10"]
[Date "2021.12.27"]
[WhiteClock "0:09:04"]
[BlackClock "0:00:31"]

1. d4 {[%clk 0:15:00]}  d5 {[%clk 0:15:00]} 2. c4 {[%clk 0:15:00]}  e6 {[%clk 0:15:00]} 3. Nf3 {[%clk 0:15:00]}  Nf6 {[%clk 0:15:00]} 4. g3 {[%clk 0:15:00]}  Be7 {[%clk 0:15:00]} 5. Bg2 {[%clk 0:15:00]}  O-O {[%clk 0:15:00]} 6. O-O {[%clk 0:15:00]}  Nbd7 {[%clk 0:15:07]} 7. Qd3 {[%clk 0:14:51]}  a6 {[%clk 0:15:07]} 8. Nbd2 {[%clk 0:14:51]}  b6 {[%clk 0:15:07]} 9. e4 {[%clk 0:14:51]}  dxe4 {[%clk 0:15:07]} 10. Nxe4 {[%clk 0:14:51]}  Bb7 {[%clk 0:15:07]} 11. Nc3 {[%clk 0:14:51]}  b5 {[%clk 0:14:58]} 12. b3 {[%clk 0:12:33]}  c5 {[%clk 0:13:28]} 13. cxb5 {[%clk 0:11:56]}  axb5 {[%clk 0:13:28]} 14. Nxb5 {[%clk 0:11:56]}  Nd5 {[%clk 0:10:28]} 15. a4 {[%clk 0:11:49]}  Nb4 {[%clk 0:10:28]} 16. Qe2 {[%clk 0:11:49]}  Bd5 {[%clk 0:10:28]} 17. Rb1 {[%clk 0:11:49]}  Rc8 {[%clk 0:10:28]} 18. dxc5 {[%clk 0:11:26]}  Nxc5 {[%clk 0:09:24]} 19. Rd1 {[%clk 0:11:26]}  Nxb3 {[%clk 0:09:23]} 20. Ba3 {[%clk 0:10:30]}  Rc2 {[%clk 0:09:23]} 21. Qe1 {[%clk 0:10:30]}  Bc5 {[%clk 0:06:26]} 22. Nfd4 {[%clk 0:09:46]}  Nxd4 {[%clk 0:06:26]} 23. Nxd4 {[%clk 0:09:46]}  Bxd4 {[%clk 0:06:26]} 24. Rxd4 {[%clk 0:09:46]}  Nc6 {[%clk 0:06:26]} 25. Rxd5 {[%clk 0:09:41]}  exd5 {[%clk 0:01:20]} 26. Qd1 {[%clk 0:09:41]}  Rc3 {[%clk 0:01:20]} 27. Bxf8 {[%clk 0:09:41]}  Kxf8 {[%clk 0:01:20]} 28. Qxd5 {[%clk 0:09:41]}  Qf6 {[%clk 0:01:20]} 29. Be4 {[%clk 0:09:41]}  Qe7 {[%clk 0:00:31]} 30. Qxc6 {[%clk 0:09:04]}  Rxc6 {[%clk 0:00:31]} 31. Rb8+ {[%clk 0:09:04]} 1-0


[Site "http://www.Chess.com"]

[Event "FIDE World Rapid Chess Championship 2021"]
[White "Amin, Bassem"]
[Black "Erdos, Viktor"]
[WhiteFideId "10601457"]
[BlackFideId "719978"]
[WhiteElo "2614"]
[BlackElo "2601"]
[Result "1-0"]
[Round "08"]
[TimeControl "900+10"]
[Date "2021.12.27"]
[WhiteClock "0:01:03"]
[BlackClock "0:00:09"]

1. Nf3 {[%clk 0:15:00]}  d5 {[%clk 0:15:00]} 2. g3 {[%clk 0:15:00]}  g6 {[%clk 0:15:17]} 3. Bg2 {[%clk 0:15:44]}  Bg7 {[%clk 0:15:17]} 4. O-O {[%clk 0:15:44]}  e5 {[%clk 0:15:17]} 5. d3 {[%clk 0:15:44]}  Ne7 {[%clk 0:15:17]} 6. c4 {[%clk 0:15:35]}  c6 {[%clk 0:13:17]} 7. e4 {[%clk 0:15:35]}  dxe4 {[%clk 0:13:17]} 8. dxe4 {[%clk 0:15:35]}  Qxd1 {[%clk 0:13:17]} 9. Rxd1 {[%clk 0:15:35]}  Bg4 {[%clk 0:13:17]} 10. h3 {[%clk 0:15:52]}  Bxf3 {[%clk 0:09:12]} 11. Bxf3 {[%clk 0:15:52]}  Nd7 {[%clk 0:09:12]} 12. Be3 {[%clk 0:15:52]}  h5 {[%clk 0:09:12]} 13. g4 {[%clk 0:14:04]}  hxg4 {[%clk 0:08:54]} 14. hxg4 {[%clk 0:14:04]}  Nf8 {[%clk 0:08:54]} 15. Kg2 {[%clk 0:11:08]}  Ne6 {[%clk 0:08:30]} 16. g5 {[%clk 0:08:12]}  Nd4 {[%clk 0:03:21]} 17. Na3 {[%clk 0:07:40]}  O-O-O {[%clk 0:03:21]} 18. Bg4+ {[%clk 0:07:40]}  Kc7 {[%clk 0:03:21]} 19. c5 {[%clk 0:07:40]}  Rh4 {[%clk 0:02:39]} 20. Kg3 {[%clk 0:07:27]}  Rdh8 {[%clk 0:02:39]} 21. Bxd4 {[%clk 0:06:43]}  exd4 {[%clk 0:01:20]} 22. Nc2 {[%clk 0:06:43]}  Be5+ {[%clk 0:01:20]} 23. f4 {[%clk 0:06:43]}  Nf5+ {[%clk 0:01:20]} 24. exf5 {[%clk 0:04:50]}  gxf5 {[%clk 0:00:00]} 25. Bf3 {[%clk 0:01:38]}  Rxf4 {[%clk 0:00:00]} 26. Ne1 {[%clk 0:01:38]}  Rg4+ {[%clk 0:00:00]} 27. Kf2 {[%clk 0:01:38]}  Rxg5 {[%clk 0:00:00]} 28. Ng2 {[%clk 0:01:38]}  Rh2 {[%clk 0:00:00]} 29. Rh1 {[%clk 0:01:38]}  Rxh1 {[%clk 0:00:00]} 30. Rxh1 {[%clk 0:01:38]}  d3 {[%clk 0:00:00]} 31. Ke3 {[%clk 0:00:50]}  f4+ {[%clk 0:00:19]} 32. Kxd3 {[%clk 0:00:50]}  Bxb2 {[%clk 0:00:19]} 33. Rh5 {[%clk 0:00:50]}  Rxh5 {[%clk 0:00:19]} 34. Bxh5 {[%clk 0:00:50]}  Ba3 {[%clk 0:00:19]} 35. Kc4 {[%clk 0:00:50]}  b5+ {[%clk 0:00:19]} 36. cxb6+ {[%clk 0:00:50]}  axb6 {[%clk 0:00:19]} 37. Nxf4 {[%clk 0:00:50]}  Bd6 {[%clk 0:00:19]} 38. Ne2 {[%clk 0:00:50]}  b5+ {[%clk 0:00:19]} 39. Kd3 {[%clk 0:00:50]}  f6 {[%clk 0:00:19]} 40. Nd4 {[%clk 0:00:50]}  Be5 {[%clk 0:00:09]} 41. Ke4 {[%clk 0:01:03]} 1-0


[Site "http://www.Chess.com"]

[Event "FIDE World Rapid Chess Championship 2021"]
[White "Hovhannisyan, Robert"]
[Black "Maghsoodloo, Parham"]
[WhiteFideId "13302507"]
[BlackFideId "12539929"]
[WhiteElo "2613"]
[BlackElo "2512"]
[Result "1-0"]
[Round "08"]
[TimeControl "900+10"]
[Date "2021.12.27"]
[WhiteClock "0:00:18"]
[BlackClock "0:00:42"]

1. e4 {[%clk 0:15:00]}  c5 {[%clk 0:15:00]} 2. Nf3 {[%clk 0:15:00]}  Nc6 {[%clk 0:15:00]} 3. d4 {[%clk 0:15:00]}  cxd4 {[%clk 0:15:00]} 4. Nxd4 {[%clk 0:15:00]}  e5 {[%clk 0:15:00]} 5. Nb5 {[%clk 0:15:56]}  d6 {[%clk 0:16:05]} 6. N1c3 {[%clk 0:15:56]}  a6 {[%clk 0:16:05]} 7. Na3 {[%clk 0:15:56]}  Be6 {[%clk 0:16:05]} 8. Nc4 {[%clk 0:15:56]}  b5 {[%clk 0:15:02]} 9. Ne3 {[%clk 0:15:08]}  Nf6 {[%clk 0:15:02]} 10. Bd3 {[%clk 0:15:08]}  g6 {[%clk 0:15:02]} 11. a4 {[%clk 0:15:08]}  b4 {[%clk 0:15:02]} 12. Ncd5 {[%clk 0:15:08]}  Bg7 {[%clk 0:15:02]} 13. Bd2 {[%clk 0:15:08]}  a5 {[%clk 0:15:16]} 14. Bb5 {[%clk 0:13:17]}  Rc8 {[%clk 0:09:00]} 15. Nxf6+ {[%clk 0:13:17]}  Bxf6 {[%clk 0:09:00]} 16. c3 {[%clk 0:13:17]}  bxc3 {[%clk 0:09:00]} 17. Bxc3 {[%clk 0:13:17]}  O-O {[%clk 0:09:00]} 18. Qd2 {[%clk 0:12:23]}  Nd4 {[%clk 0:08:57]} 19. Rd1 {[%clk 0:07:19]}  Bb3 {[%clk 0:07:30]} 20. Bxa5 {[%clk 0:07:19]}  Qe7 {[%clk 0:07:30]} 21. O-O {[%clk 0:07:19]}  Bg5 {[%clk 0:07:30]} 22. Rc1 {[%clk 0:05:38]}  Bf4 {[%clk 0:07:11]} 23. Rxc8 {[%clk 0:04:12]}  Rxc8 {[%clk 0:01:32]} 24. Rc1 {[%clk 0:02:49]}  Rc2 {[%clk 0:01:32]} 25. Rxc2 {[%clk 0:02:49]}  Bxc2 {[%clk 0:01:32]} 26. Bc3 {[%clk 0:02:37]}  Qh4 {[%clk 0:00:50]} 27. h3 {[%clk 0:02:37]}  Bxe4 {[%clk 0:00:50]} 28. Bxd4 {[%clk 0:02:37]}  exd4 {[%clk 0:00:50]} 29. Qxd4 {[%clk 0:02:37]}  Be5 {[%clk 0:00:50]} 30. Qc4 {[%clk 0:02:37]}  h5 {[%clk 0:00:42]} 31. Bc6 {[%clk 0:00:18]}  d5 {[%clk 0:00:42]} 32. Bxd5 {[%clk 0:00:18]} 1-0


[Site "http://www.Chess.com"]

[Event "FIDE World Rapid Chess Championship 2021"]
[White "Vachier-Lagrave, Maxime"]
[Black "Suleymanli, Aydin"]
[WhiteFideId "623539"]
[BlackFideId "13413937"]
[WhiteElo "2773"]
[BlackElo "2202"]
[Result "1-0"]
[Round "08"]
[TimeControl "900+10"]
[Date "2021.12.27"]
[WhiteClock "0:10:39"]
[BlackClock "0:03:50"]

1. e4 {[%clk 0:15:00]}  c6 {[%clk 0:13:27]} 2. Nf3 {[%clk 0:15:19]}  d5 {[%clk 0:13:27]} 3. d3 {[%clk 0:15:19]}  dxe4 {[%clk 0:13:27]} 4. dxe4 {[%clk 0:15:19]}  Qxd1+ {[%clk 0:13:27]} 5. Kxd1 {[%clk 0:15:19]}  Nd7 {[%clk 0:13:27]} 6. a4 {[%clk 0:15:19]}  Nc5 {[%clk 0:13:27]} 7. Nfd2 {[%clk 0:15:19]}  e5 {[%clk 0:13:27]} 8. b4 {[%clk 0:15:17]}  Ne6 {[%clk 0:13:27]} 9. c3 {[%clk 0:15:17]}  a5 {[%clk 0:13:27]} 10. bxa5 {[%clk 0:15:17]}  Nc5 {[%clk 0:12:21]} 11. Ba3 {[%clk 0:14:51]}  Be6 {[%clk 0:12:21]} 12. Bb4 {[%clk 0:14:51]}  Nb3 {[%clk 0:10:20]} 13. Nxb3 {[%clk 0:14:51]}  Bxb3+ {[%clk 0:10:20]} 14. Kc1 {[%clk 0:14:51]}  c5 {[%clk 0:10:20]} 15. Bb5+ {[%clk 0:14:51]}  Kd8 {[%clk 0:10:20]} 16. Ba3 {[%clk 0:14:51]}  Rxa5 {[%clk 0:10:20]} 17. c4 {[%clk 0:14:51]}  Bxa4 {[%clk 0:09:24]} 18. Bb2 {[%clk 0:14:15]}  Bxb5 {[%clk 0:09:24]} 19. Rxa5 {[%clk 0:14:15]}  Ba6 {[%clk 0:09:24]} 20. Bxe5 {[%clk 0:14:32]}  Kd7 {[%clk 0:06:52]} 21. Rd1+ {[%clk 0:14:32]}  Ke6 {[%clk 0:06:52]} 22. f4 {[%clk 0:14:32]}  f6 {[%clk 0:06:52]} 23. Bc7 {[%clk 0:13:19]}  Ne7 {[%clk 0:05:55]} 24. Rxc5 {[%clk 0:13:19]}  Nc6 {[%clk 0:05:55]} 25. f5+ {[%clk 0:13:19]}  Kf7 {[%clk 0:05:55]} 26. Bd6 {[%clk 0:13:19]}  Bxd6 {[%clk 0:05:19]} 27. Rxd6 {[%clk 0:11:57]}  Re8 {[%clk 0:05:19]} 28. Nc3 {[%clk 0:11:57]}  Ne5 {[%clk 0:05:19]} 29. Rc7+ {[%clk 0:11:57]}  Re7 {[%clk 0:05:19]} 30. Rxe7+ {[%clk 0:11:36]}  Kxe7 {[%clk 0:04:11]} 31. c5 {[%clk 0:11:36]}  Nd3+ {[%clk 0:04:11]} 32. Rxd3 {[%clk 0:11:36]}  Bxd3 {[%clk 0:04:11]} 33. Kd2 {[%clk 0:11:36]}  Bf1 {[%clk 0:04:11]} 34. g3 {[%clk 0:11:36]}  Kd7 {[%clk 0:04:11]} 35. Ke3 {[%clk 0:11:36]}  Kc6 {[%clk 0:03:50]} 36. Kd4 {[%clk 0:10:39]}  b6 {[%clk 0:03:50]} 37. cxb6 {[%clk 0:10:39]}  Kxb6 {[%clk 0:03:50]} 38. Nd5+ {[%clk 0:10:39]}  Kc6 {[%clk 0:03:50]} 39. Nf4 {[%clk 0:10:39]} 1-0


[Site "http://www.Chess.com"]

[Event "FIDE World Rapid Chess Championship 2021"]
[White "Ghaem Maghami, Ehsan"]
[Black "Karjakin, Sergey"]
[WhiteFideId "12500739"]
[BlackFideId "14109603"]
[WhiteElo "2553"]
[BlackElo "2757"]
[Result "0-1"]
[Round "08"]
[TimeControl "900+10"]
[Date "2021.12.27"]
[WhiteClock "0:00:40"]
[BlackClock "0:07:29"]

1. d4 {[%clk 0:15:00]}  Nf6 {[%clk 0:15:00]} 2. c4 {[%clk 0:15:00]}  e6 {[%clk 0:15:00]} 3. Nf3 {[%clk 0:14:27]}  b6 {[%clk 0:15:19]} 4. a3 {[%clk 0:14:27]}  Bb7 {[%clk 0:15:19]} 5. Nc3 {[%clk 0:14:27]}  d5 {[%clk 0:15:19]} 6. Bg5 {[%clk 0:14:27]}  Be7 {[%clk 0:15:19]} 7. e3 {[%clk 0:14:27]}  O-O {[%clk 0:15:19]} 8. Be2 {[%clk 0:14:27]}  h6 {[%clk 0:15:19]} 9. Bh4 {[%clk 0:14:27]}  Nbd7 {[%clk 0:15:06]} 10. O-O {[%clk 0:11:54]}  c5 {[%clk 0:15:06]} 11. cxd5 {[%clk 0:11:54]}  Nxd5 {[%clk 0:15:06]} 12. Bxe7 {[%clk 0:11:54]}  Qxe7 {[%clk 0:15:06]} 13. Rc1 {[%clk 0:10:27]}  Rfd8 {[%clk 0:14:48]} 14. Nxd5 {[%clk 0:07:34]}  Bxd5 {[%clk 0:14:41]} 15. Qc2 {[%clk 0:07:34]}  cxd4 {[%clk 0:14:50]} 16. Nxd4 {[%clk 0:04:33]}  Ne5 {[%clk 0:14:50]} 17. f4 {[%clk 0:04:33]}  Nd7 {[%clk 0:14:50]} 18. Bf3 {[%clk 0:04:56]}  Bxf3 {[%clk 0:12:20]} 19. Rxf3 {[%clk 0:04:56]}  Qe8 {[%clk 0:12:20]} 20. Rff1 {[%clk 0:04:56]}  Nf6 {[%clk 0:12:20]} 21. Qc6 {[%clk 0:04:56]}  Rd7 {[%clk 0:12:13]} 22. Nf3 {[%clk 0:03:08]}  Rd3 {[%clk 0:12:13]} 23. Qxe8+ {[%clk 0:03:20]}  Rxe8 {[%clk 0:09:22]} 24. Rfe1 {[%clk 0:03:20]}  Red8 {[%clk 0:09:22]} 25. Rc2 {[%clk 0:03:20]}  Ne4 {[%clk 0:09:22]} 26. Kf1 {[%clk 0:02:47]}  g5 {[%clk 0:08:03]} 27. Ke2 {[%clk 0:02:47]}  R3d5 {[%clk 0:08:03]} 28. Rec1 {[%clk 0:02:47]}  Nc5 {[%clk 0:08:03]} 29. Rd2 {[%clk 0:01:40]}  Nb3 {[%clk 0:07:19]} 30. Rcd1 {[%clk 0:01:40]}  Nxd2 {[%clk 0:07:19]} 31. Rxd2 {[%clk 0:01:40]}  Rxd2+ {[%clk 0:07:19]} 32. Nxd2 {[%clk 0:01:40]}  f6 {[%clk 0:07:19]} 33. Ne4 {[%clk 0:01:40]}  Kf7 {[%clk 0:07:19]} 34. Nc3 {[%clk 0:01:40]}  a6 {[%clk 0:07:19]} 35. Na4 {[%clk 0:01:40]}  Rd6 {[%clk 0:07:19]} 36. Nc3 {[%clk 0:01:40]}  f5 {[%clk 0:07:19]} 37. g3 {[%clk 0:01:40]}  Kf6 {[%clk 0:07:26]} 38. Nb1 {[%clk 0:01:15]}  e5 {[%clk 0:07:26]} 39. fxe5+ {[%clk 0:01:15]}  Kxe5 {[%clk 0:07:26]} 40. Nd2 {[%clk 0:01:15]}  b5 {[%clk 0:07:26]} 41. Nb3 {[%clk 0:01:15]}  f4 {[%clk 0:07:26]} 42. gxf4+ {[%clk 0:01:15]}  gxf4 {[%clk 0:07:26]} 43. Nc5 {[%clk 0:01:15]}  fxe3 {[%clk 0:07:26]} 44. Kxe3 {[%clk 0:01:15]}  Kd5 {[%clk 0:07:26]} 45. Nb3 {[%clk 0:00:40]}  Rg6 {[%clk 0:07:29]} 0-1


[Site "http://www.Chess.com"]

[Event "FIDE World Rapid Chess Championship 2021"]
[White "Pichot, Alan"]
[Black "Aronian, Levon"]
[WhiteFideId "110973"]
[BlackFideId "13300474"]
[WhiteElo "2523"]
[BlackElo "2728"]
[Result "0-1"]
[Round "08"]
[TimeControl "900+10"]
[Date "2021.12.27"]
[WhiteClock "0:03:23"]
[BlackClock "0:08:08"]

1. e4 {[%clk 0:15:00]}  e5 {[%clk 0:15:00]} 2. Nf3 {[%clk 0:15:00]}  Nc6 {[%clk 0:15:00]} 3. Bb5 {[%clk 0:15:00]}  a6 {[%clk 0:15:00]} 4. Ba4 {[%clk 0:15:00]}  Nf6 {[%clk 0:15:00]} 5. d3 {[%clk 0:15:40]}  Bc5 {[%clk 0:15:12]} 6. c3 {[%clk 0:15:40]}  b5 {[%clk 0:15:12]} 7. Bb3 {[%clk 0:15:40]}  d6 {[%clk 0:15:12]} 8. Bg5 {[%clk 0:15:40]}  h6 {[%clk 0:15:12]} 9. Bh4 {[%clk 0:15:40]}  Bb6 {[%clk 0:15:12]} 10. a4 {[%clk 0:15:40]}  Rb8 {[%clk 0:15:12]} 11. axb5 {[%clk 0:15:40]}  axb5 {[%clk 0:15:12]} 12. O-O {[%clk 0:15:40]}  g5 {[%clk 0:15:12]} 13. Bg3 {[%clk 0:15:40]}  Ne7 {[%clk 0:15:12]} 14. d4 {[%clk 0:15:40]}  Nxe4 {[%clk 0:15:04]} 15. dxe5 {[%clk 0:13:45]}  Nxg3 {[%clk 0:14:13]} 16. hxg3 {[%clk 0:13:44]}  O-O {[%clk 0:14:13]} 17. exd6 {[%clk 0:13:44]}  Qxd6 {[%clk 0:14:13]} 18. Qxd6 {[%clk 0:13:05]}  cxd6 {[%clk 0:11:10]} 19. Nbd2 {[%clk 0:13:05]}  Nf5 {[%clk 0:11:10]} 20. Ne4 {[%clk 0:13:05]}  Kg7 {[%clk 0:11:10]} 21. Rfd1 {[%clk 0:10:53]}  Re8 {[%clk 0:10:35]} 22. Bd5 {[%clk 0:10:05]}  Be6 {[%clk 0:10:05]} 23. Bxe6 {[%clk 0:08:18]}  Rxe6 {[%clk 0:09:38]} 24. Rd5 {[%clk 0:08:18]}  Ne7 {[%clk 0:09:38]} 25. Rxd6 {[%clk 0:05:20]}  Rxe4 {[%clk 0:09:24]} 26. Ra6 {[%clk 0:05:20]}  Re6 {[%clk 0:09:24]} 27. Rxe6 {[%clk 0:05:20]}  fxe6 {[%clk 0:09:24]} 28. Ne5 {[%clk 0:05:20]}  Nd5 {[%clk 0:09:24]} 29. Kf1 {[%clk 0:03:58]}  Nc7 {[%clk 0:08:19]} 30. Ra1 {[%clk 0:03:58]}  Rf8 {[%clk 0:08:19]} 31. f3 {[%clk 0:03:58]}  Ra8 {[%clk 0:08:19]} 32. Rxa8 {[%clk 0:03:58]}  Nxa8 {[%clk 0:08:19]} 33. g4 {[%clk 0:03:11]}  Nc7 {[%clk 0:07:32]} 34. Ke2 {[%clk 0:03:11]}  Nd5 {[%clk 0:07:32]} 35. Kd3 {[%clk 0:03:11]}  Kf6 {[%clk 0:07:32]} 36. Nd7+ {[%clk 0:03:11]}  Ke7 {[%clk 0:07:32]} 37. Ne5 {[%clk 0:03:11]}  Nf4+ {[%clk 0:07:32]} 38. Ke4 {[%clk 0:03:11]}  Nxg2 {[%clk 0:07:32]} 39. c4 {[%clk 0:03:11]}  bxc4 {[%clk 0:07:32]} 40. Nxc4 {[%clk 0:03:11]}  Bc5 {[%clk 0:07:32]} 41. Ne5 {[%clk 0:03:11]}  Nf4 {[%clk 0:07:32]} 42. Nc4 {[%clk 0:03:11]}  Nd5 {[%clk 0:07:32]} 43. Ne5 {[%clk 0:03:11]}  Bd6 {[%clk 0:07:32]} 44. Nc4 {[%clk 0:03:23]}  Kd7 {[%clk 0:08:08]} 45. Kd4 {[%clk 0:03:23]}  Kc6 {[%clk 0:08:08]} 46. Nd2 {[%clk 0:03:23]}  Nf6 {[%clk 0:08:08]} 47. Nc4 {[%clk 0:03:23]}  Nd7 {[%clk 0:08:08]} 48. Ke4 {[%clk 0:03:23]}  Kc5 {[%clk 0:08:08]} 49. Ne3 {[%clk 0:03:23]}  Nf6+ {[%clk 0:08:08]} 50. Kd3 {[%clk 0:03:23]}  Nd5 {[%clk 0:08:08]} 51. Nc4 {[%clk 0:03:23]}  Nb4+ {[%clk 0:08:08]} 52. Kc3 {[%clk 0:03:23]}  Bg3 {[%clk 0:08:08]} 0-1


[Site "http://www.Chess.com"]